fUST/lending_fUST_20250610
["ID","MTS","AMOUNT","RATE_DAILY","PERIOD"]
[365174384,1749513037984,-329.73505,0.00021913,2]
[365174385,1749513037994,-329.735046,0.00021913,2]
[365174386,1749513038003,-460.0,0.00021913,4]
[365174387,1749513038013,-151.0,0.00021914,2]
[365174388,1749513038023,-151.0,0.00021914,2]
[365174389,1749513038032,-151.0,0.00021914,2]
[365174390,1749513038042,-300.0,0.00021914,4]
[365174391,1749513038053,-401.627649,0.00021914,2]
[365174392,1749513038063,-151.0,0.00021914,2]
[365174393,1749513038074,-401.627649,0.00021914,2]
[365174394,1749513038084,-151.0,0.00021914,2]
[365174395,1749513038093,-460.0,0.00021914,4]
[365174396,1749513038103,-151.0,0.00021914,2]
[365174397,1749513038114,-151.0,0.00021914,2]
[365174398,1749513038124,-551.012964,0.00021914,2]
[365174399,1749513038135,-551.012964,0.00021914,2]
[365174400,1749513038145,-151.0,0.00021914,2]
[365174401,1749513038155,-152.702403,0.00021914,2]
[365174402,1749513038165,-460.0,0.00021914,4]
[365174403,1749513038174,-460.0,0.00021914,4]
[365174404,1749513038184,-214.763106,0.00021914,2]
[365174405,1749513038193,-184.485682,0.00021914,2]
[365174406,1749513038203,-214.763106,0.00021914,2]
[365174407,1749513038212,-1292.499572,0.00021914,2]
[365174408,1749513038222,-2116.07687,0.00021914,2]
[365174409,1749513038231,-2116.07687,0.00021914,2]
[365174410,1749513038241,-369.690761,0.00021914,2]
[365174411,1749513038252,-369.690761,0.00021914,2]
[365174412,1749513038261,-390.0,0.00021914,4]
[365174413,1749513038271,-289.72297298,0.00021914,4]
[365174414,1749513038283,-208.397045,0.00021914,2]
[365174415,1749513038293,-208.397045,0.00021914,2]
[365174416,1749513038304,-540.539566,0.00021914,2]
[365174417,1749513038313,-904.095827,0.00021914,2]
[365174418,1749513038322,-904.095827,0.00021914,2]
[365174419,1749513038332,-488.213027,0.00021914,2]
[365174420,1749513038342,-488.213027,0.00021914,2]
[365174421,1749513038351,-499.444566,0.00021914,2]
[365174422,1749513038361,-499.444566,0.00021914,2]
[365174423,1749513038370,-151.0,0.00021914,2]
[365174424,1749513038380,-151.0,0.00021914,2]
[365174425,1749513038390,-457.874535,0.00021914,2]
[365174426,1749513038399,-457.874535,0.00021914,2]
[365174427,1749513038408,-457.874535,0.00021914,2]
[365174428,1749513038417,-457.874539,0.00021914,2]
[365174429,1749513038427,-622.403755,0.00021914,2]
[365174430,1749513038437,-420.980705,0.00021914,2]
[365174431,1749513038447,-622.403755,0.00021914,2]
[365174432,1749513038457,-420.980705,0.00021914,2]
[365174433,1749513038467,-151.0,0.00021915,2]
[365174434,1749513038476,-370.0,0.00021915,4]
[365174435,1749513038485,-904.095827,0.00021915,2]
[365174436,1749513038495,-904.095827,0.00021915,2]
[365174437,1749513038504,-499.444566,0.00021915,2]
[365174438,1749513038514,-499.444566,0.00021915,2]
[365174439,1749513038523,-420.980705,0.00021915,2]
[365174440,1749513038533,-420.980705,0.00021915,2]
[365174441,1749513038543,-151.0,0.00021918,2]
[365174442,1749513038552,-151.0,0.00021918,2]
[365174443,1749513038562,-151.0,0.00021918,2]
[365174444,1749513038572,-151.0,0.00021918,2]
[365174445,1749513038581,-151.0,0.00021918,2]
[365174446,1749513038591,-151.0,0.00021918,2]
[365174447,1749513038601,-151.0,0.00021918,2]
[365174448,1749513038610,-210.156538,0.00021918,2]
[365174449,1749513038619,-210.156538,0.00021918,2]
[365174450,1749513038629,-210.156538,0.00021918,2]
[365174451,1749513038639,-210.156538,0.00021918,2]
[365174452,1749513038648,-210.156538,0.00021918,2]
[365174453,1749513038657,-210.156538,0.00021918,2]
[365174454,1749513038670,-210.156538,0.00021918,2]
[365174456,1749513038685,-210.156538,0.00021918,2]
[365174458,1749513038699,-210.156538,0.00021918,2]
[365174460,1749513038716,-210.156538,0.00021918,2]
[365174461,1749513038729,-210.156538,0.00021918,2]
[365174462,1749513038740,-210.156538,0.00021918,2]
[365174463,1749513038754,-210.156538,0.00021918,2]
[365174464,1749513038767,-210.156538,0.00021918,2]
[365174465,1749513038779,-186.0,0.00022,2]
[365174466,1749513038792,-585.17747934,0.00022003,6]
[365174467,1749513038805,-488.213027,0.00022092,7]
[365174468,1749513038819,-210.156538,0.00022092,7]
[365174469,1749513038832,-488.213027,0.00022092,7]
[365174470,1749513038845,-210.156538,0.00022092,7]
[365174471,1749513038858,-622.403755,0.00022092,7]
[365174472,1749513038870,-622.403755,0.00022092,7]
[365174473,1749513038882,-176.0279996,0.00022093,2]
[365174474,1749513038895,-500.0,0.00022099,4]
[365174475,1749513038906,-500.0,0.00022099,2]
[365174476,1749513038919,-500.0,0.00022099,2]
[365174477,1749513038933,-205.2025696,0.00022099,2]
[365174478,1749513038944,-500.0,0.00022099,2]
[365174479,1749513038955,-500.0,0.00022099,2]
[365174480,1749513038966,-500.0,0.00022099,2]
[365174481,1749513038977,-353.44266968,0.00022099,2]
[365174482,1749513038988,-5000.0,0.000221,30]
[365174483,1749513039000,-151.0,0.000221,7]
[365174484,1749513039012,-221.9797,0.000221,7]
[365174485,1749513039025,-151.0,0.000221,7]
[365174486,1749513039038,-151.0,0.000221,7]
[365174487,1749513039052,-151.0,0.000221,7]
[365174488,1749513039064,-401.627649,0.000221,7]
[365174489,1749513039077,-151.0,0.000221,7]
[365174490,1749513039091,-401.627649,0.000221,7]
[365174491,1749513039101,-151.0,0.000221,7]
[365174492,1749513039111,-151.0,0.000221,7]
[365174493,1749513039122,-551.012964,0.000221,7]
[365174494,1749513039134,-551.012964,0.000221,7]
[365174495,1749513039146,-214.763106,0.000221,7]
[365174496,1749513039159,-214.763106,0.000221,7]
[365174497,1749513039173,-214.763106,0.000221,7]
[365174498,1749513039184,-1292.499572,0.000221,7]
[365174499,1749513039195,-214.763106,0.000221,7]
[365174500,1749513039206,-2116.07687,0.000221,2]
[365174501,1749513039218,-2116.07687,0.000221,2]
[365174502,1749513039229,-369.690761,0.000221,7]
[365174503,1749513039242,-369.690761,0.000221,7]
[365174504,1749513039253,-208.397045,0.000221,7]
[365174505,1749513039263,-208.397045,0.000221,7]
[365174506,1749513039274,-540.539566,0.000221,7]
[365174507,1749513039285,-540.539566,0.000221,7]
[365174508,1749513039296,-540.539566,0.000221,7]
[365174509,1749513039309,-540.539566,0.000221,7]
[365174510,1749513039321,-151.0,0.000221,7]
[365174511,1749513039332,-904.095827,0.000221,7]
[365174512,1749513039344,-904.095827,0.000221,7]
[365174513,1749513039355,-488.213027,0.000221,7]
[365174514,1749513039366,-210.156538,0.000221,7]
[365174515,1749513039377,-488.213027,0.000221,7]
[365174516,1749513039388,-210.156538,0.000221,7]
[365174517,1749513039400,-499.444566,0.000221,7]
[365174518,1749513039412,-499.444566,0.000221,7]
[365174519,1749513039423,-151.0,0.000221,7]
[365174520,1749513039435,-842.5625,0.000221,7]
[365174521,1749513039446,-622.403755,0.000221,7]
[365174522,1749513039457,-420.980705,0.000221,7]
[365174523,1749513039469,-420.980705,0.000221,7]
[365174524,1749513039481,-622.403755,0.000221,7]
[365174525,1749513039492,-315.14996555,0.000221,7]
[365174526,1749513039503,-11856.04170836,0.000221,7]
[365174527,1749513039514,-585.17747934,0.00022107,6]
[365174528,1749513039526,-2445.63682306,0.00022117,2]
[365174529,1749513039537,-460.0,0.00022186,4]
[365174530,1749513039548,-755.26,0.00022186,4]
[365174531,1749513039560,-3170.2,0.00022186,4]
[365174532,1749513039572,-691.99,0.00022186,4]
[365174533,1749513039583,-931.16,0.00022186,4]
[365174534,1749513039595,-660.48,0.00022186,4]
[365174535,1749513039606,-591.17,0.00022186,4]
[365174536,1749513039617,-237.2136732,0.00022187,7]
[365174537,1749513039628,-619.25,0.00022187,4]
[365174538,1749513039639,-460.0,0.00022187,4]
[365174539,1749513039652,-460.0,0.00022187,4]
[365174540,1749513039664,-460.0,0.00022187,4]
[365174541,1749513039677,-460.0,0.00022187,4]
[365174542,1749513039689,-460.0,0.00022187,4]
[365174543,1749513039702,-460.0,0.00022187,4]
[365174544,1749513039719,-460.0,0.00022187,4]
[365174545,1749513039732,-460.0,0.00022187,4]
[365174546,1749513039744,-460.0,0.00022187,4]
[365174547,1749513039758,-460.0,0.00022187,4]
[365174548,1749513039771,-265.27490865,0.00022187,4]
[365174549,1749513039786,-882.83,0.00022187,4]
[365174550,1749513039800,-460.0,0.00022187,4]
[365174551,1749513039819,-460.0,0.00022187,2]
[365174552,1749513039831,-460.0,0.00022187,4]
[365174553,1749513039845,-460.0,0.00022187,4]
[365174554,1749513039856,-319.61171324,0.00022187,4]
[365174555,1749513039868,-460.0,0.00022187,4]
[365174556,1749513039879,-151.0,0.00022188,7]
[365174557,1749513039889,-160.0,0.00022188,2]
[365174559,1749513039900,-151.0,0.00022188,7]
[365174560,1749513039911,-276.34897861,0.00022188,4]
[365174561,1749513039921,-460.0,0.00022188,4]
[365174562,1749513039931,-340.0,0.00022188,4]
[365174564,1749513040094,-214.763106,0.00022188,7]
[365174565,1749513040114,-214.763106,0.00022188,7]
[365174566,1749513040126,-369.690761,0.00022188,7]
[365174567,1749513040136,-369.690761,0.00022188,7]
[365174568,1749513040147,-208.397045,0.00022188,7]
[365174569,1749513040157,-208.397045,0.00022188,7]
[365174570,1749513040167,-540.539566,0.00022188,7]
[365174571,1749513040177,-540.539566,0.00022188,7]
[365174572,1749513040187,-904.095827,0.00022188,7]
[365174573,1749513040198,-904.095827,0.00022188,7]
[365174574,1749513040208,-488.213027,0.00022188,7]
[365174575,1749513040218,-210.156538,0.00022188,7]
[365174576,1749513040228,-488.213018,0.00022188,7]
[365174577,1749513040238,-210.156548,0.00022188,7]
[365174578,1749513040248,-499.444566,0.00022188,7]
[365174579,1749513040258,-499.444566,0.00022188,7]
[365174580,1749513040269,-622.403755,0.00022188,7]
[365174581,1749513040279,-420.980705,0.00022188,7]
[365174582,1749513040290,-420.980705,0.00022188,7]
[365174583,1749513040306,-622.403763,0.00022188,7]
[365174584,1749513040316,-186.0,0.00022192,7]
[365174586,1749513040325,-153.0,0.00022192,2]
[365174588,1749513040335,-153.0,0.00022192,2]
[365174590,1749513040345,-1093.61721572,0.00022207,2]
[365174591,1749513040355,-585.17747934,0.0002221,6]
[365174593,1749513040365,-500.0,0.00022257,2]
[365174594,1749513040375,-500.0,0.00022306,4]
[365174595,1749513040385,-451.42,0.00022306,4]
[365174596,1749513040395,-500.0,0.00022306,2]
[365174597,1749513040405,-500.0,0.00022306,2]
[365174598,1749513040415,-151.0,0.00022307,7]
[365174599,1749513040425,-151.0,0.00022307,7]
[365174600,1749513040435,-151.0,0.00022307,7]
[365174601,1749513040444,-151.0,0.00022307,7]
[365174602,1749513040454,-151.0,0.00022307,7]
[365174603,1749513040464,-151.0,0.00022307,7]
[365174604,1749513040474,-151.0,0.00022307,7]
[365174605,1749513040484,-151.0,0.00022307,7]
[365174606,1749513040493,-151.0,0.00022307,7]
[365174607,1749513040503,-151.0,0.00022307,7]
[365174608,1749513040513,-151.0,0.00022307,7]
[365174609,1749513040523,-151.0,0.00022307,7]
[365174610,1749513040533,-401.627649,0.00022307,7]
[365174611,1749513040543,-151.0,0.00022307,7]
[365174612,1749513040556,-401.627649,0.00022307,7]
[365174613,1749513040565,-151.0,0.00022307,7]
[365174614,1749513040574,-401.627649,0.00022307,7]
[365174615,1749513040584,-151.0,0.00022307,7]
[365174616,1749513040594,-401.627649,0.00022307,7]
[365174617,1749513040604,-401.627649,0.00022307,7]
[365174618,1749513040614,-401.627649,0.00022307,7]
[365174619,1749513040623,-151.0,0.00022307,7]
[365174620,1749513040634,-151.0,0.00022307,7]
[365174621,1749513040643,-151.0,0.00022307,7]
[365174622,1749513040652,-151.0,0.00022307,7]
[365174623,1749513040662,-239.867652,0.00022307,7]
[365174624,1749513040672,-551.012964,0.00022307,7]
[365174625,1749513040682,-551.012964,0.00022307,7]
[365174626,1749513040691,-551.012964,0.00022307,7]
[365174627,1749513040701,-551.012964,0.00022307,7]
[365174628,1749513040715,-551.012964,0.00022307,7]
[365174629,1749513040724,-551.012964,0.00022307,7]
[365174630,1749513040734,-214.763106,0.00022307,7]
[365174631,1749513040743,-214.763106,0.00022307,7]
[365174632,1749513040753,-1292.499572,0.00022307,7]
[365174633,1749513040762,-1292.499572,0.00022307,7]
[365174634,1749513040772,-214.763106,0.00022307,7]
[365174635,1749513040782,-1292.499572,0.00022307,7]
[365174636,1749513040793,-214.763106,0.00022307,7]
[365174637,1749513040809,-2116.07687,0.00022307,2]
[365174638,1749513040819,-2116.07687,0.00022307,2]
[365174639,1749513040829,-2116.07687,0.00022307,2]
[365174640,1749513040838,-2116.07687,0.00022307,2]
[365174641,1749513040848,-2116.07687,0.00022307,2]
[365174642,1749513040858,-2116.07687,0.00022307,2]
[365174643,1749513040868,-369.690761,0.00022307,7]
[365174644,1749513040878,-369.690761,0.00022307,7]
[365174645,1749513040887,-369.690761,0.00022307,7]
[365174646,1749513040897,-369.690761,0.00022307,7]
[365174647,1749513040906,-369.690761,0.00022307,7]
[365174648,1749513040916,-369.690761,0.00022307,7]
[365174649,1749513040926,-208.397045,0.00022307,7]
[365174650,1749513040935,-208.397045,0.00022307,7]
[365174651,1749513040945,-208.397045,0.00022307,7]
[365174652,1749513040954,-208.397045,0.00022307,7]
[365174653,1749513040963,-208.397045,0.00022307,7]
[365174654,1749513040973,-208.397045,0.00022307,7]
[365174655,1749513040982,-540.539566,0.00022307,7]
[365174656,1749513040992,-540.539566,0.00022307,7]
[365174657,1749513041001,-540.539566,0.00022307,7]
[365174658,1749513041010,-540.539566,0.00022307,7]
[365174659,1749513041020,-904.095827,0.00022307,7]
[365174660,1749513041030,-904.095827,0.00022307,7]
[365174661,1749513041039,-904.095827,0.00022307,7]
[365174662,1749513041049,-904.095836,0.00022307,7]
[365174663,1749513041061,-499.444566,0.00022307,7]
[365174664,1749513041070,-499.444566,0.00022307,7]
[365174665,1749513041080,-499.444566,0.00022307,7]
[365174666,1749513041089,-499.44456,0.00022307,7]
[365174667,1749513041099,-420.980705,0.00022307,7]
[365174668,1749513041108,-420.980705,0.00022307,7]
[365174669,1749513041118,-420.980705,0.00022307,7]
[365174670,1749513041127,-420.980702,0.00022307,7]
[365174671,1749513041137,-315.14996555,0.00022307,7]
[365174672,1749513041147,-585.17747934,0.00022314,7]
[365174673,1749513041156,-160.0,0.00022321,2]
[365174674,1749513041166,-160.0,0.00022321,2]
[365174675,1749513041175,-160.0,0.00022321,2]
[365174676,1749513041184,-11856.04170836,0.00022321,2]
[365174677,1749513041193,-423.83542519,0.00022321,2]
[365174678,1749513041202,-315.14996555,0.00022323,2]
[365174679,1749513041211,-160.0,0.00022323,2]
[365174680,1749513041220,-500.0,0.00022411,2]
[365174681,1749513041230,-585.17747934,0.00022417,7]
[365174682,1749513041239,-500.0,0.00022425,2]
[365174683,1749513041248,-500.0,0.00022429,2]
[365174684,1749513041258,-460.0,0.0002246,4]
[365174685,1749513041267,-755.26,0.0002246,4]
[365174686,1749513041276,-3170.2,0.0002246,4]
[365174687,1749513041285,-691.99,0.0002246,4]
[365174688,1749513041294,-931.16,0.0002246,4]
[365174689,1749513041307,-660.48,0.0002246,4]
[365174690,1749513041316,-591.17,0.0002246,4]
[365174691,1749513041325,-619.25,0.00022461,4]
[365174693,1749513041334,-460.0,0.00022461,4]
[365174694,1749513041343,-460.0,0.00022461,4]
[365174695,1749513041353,-424.6,0.00022461,4]
[365174696,1749513041362,-460.0,0.00022461,4]
[365174697,1749513041371,-460.0,0.00022461,4]
[365174698,1749513041381,-381.7,0.00022461,4]
[365174699,1749513041391,-460.0,0.00022461,4]
[365174700,1749513041400,-460.0,0.00022461,4]
[365174701,1749513041409,-460.0,0.00022461,4]
[365174702,1749513041418,-460.0,0.00022461,4]
[365174703,1749513041428,-882.83,0.00022461,4]
[365174704,1749513041437,-460.0,0.00022461,4]
[365174705,1749513041446,-460.0,0.00022461,2]
[365174706,1749513041455,-460.0,0.00022461,4]
[365174707,1749513041465,-460.0,0.00022461,4]
[365174708,1749513041474,-460.0,0.00022461,4]
[365174709,1749513041483,-360.0,0.00022462,4]
[365174710,1749513041492,-369.690761,0.00022462,7]
[365174711,1749513041502,-369.690758,0.00022462,7]
[365174712,1749513041512,-208.397045,0.00022462,7]
[365174713,1749513041521,-208.397044,0.00022462,7]
[365174714,1749513041531,-214.763106,0.00022463,7]
[365174715,1749513041540,-214.763106,0.00022463,7]
[365174716,1749513041549,-540.539566,0.00022463,7]
[365174717,1749513041560,-540.539566,0.00022463,7]
[365174718,1749513041569,-585.17747934,0.00022521,7]
[365174719,1749513041579,-432.68775712,0.00022543,2]
[365174720,1749513041588,-585.17747934,0.00022624,7]
[365174721,1749513041598,-1614.46712119,0.00022632,2]
[365174722,1749513041608,-500.0,0.00022632,2]
[365174723,1749513041618,-500.0,0.00022632,2]
[365174724,1749513041627,-500.0,0.00022632,2]
[365174725,1749513041638,-5000.0,0.00022632,2]
[365174726,1749513041648,-500.0,0.00022632,2]
[365174727,1749513041658,-446.14358159,0.00022632,2]
[365174728,1749513041668,-500.0,0.00022632,2]
[365174729,1749513041678,-500.0,0.00022632,2]
[365174730,1749513041688,-500.0,0.00022632,2]
[365174731,1749513041701,-500.0,0.00022632,2]
[365174732,1749513041717,-500.0,0.00022632,2]
[365174733,1749513041727,-500.0,0.00022632,2]
[365174734,1749513041737,-500.0,0.00022632,2]
[365174735,1749513041749,-500.0,0.00022632,2]
[365174736,1749513041759,-500.0,0.00022632,2]
[365174737,1749513041769,-500.0,0.00022632,2]
[365174738,1749513041779,-500.0,0.00022632,2]
[365174739,1749513041790,-207.4,0.00022632,2]
[365174740,1749513041799,-245.26000001,0.00022632,2]
[365174741,1749513041810,-2445.63682306,0.00022694,2]
[365174742,1749513041819,-4603.657962,0.000227,2]
[365174743,1749513041829,-151.0,0.000227,7]
[365174744,1749513041838,-151.0,0.000227,7]
[365174745,1749513041848,-356.477731,0.000227,7]
[365174746,1749513041857,-356.477731,0.000227,7]
[365174747,1749513041866,-151.0,0.000227,7]
[365174748,1749513041876,-151.0,0.000227,7]
[365174749,1749513041886,-151.0,0.000227,7]
[365174750,1749513041895,-297.1536,0.000227,7]
[365174751,1749513041905,-297.1536,0.000227,7]
[365174752,1749513041915,-151.0,0.000227,7]
[365174753,1749513041924,-160.582104,0.000227,7]
[365174754,1749513041933,-401.627649,0.000227,7]
[365174755,1749513041942,-151.0,0.000227,7]
[365174756,1749513041952,-401.627649,0.000227,7]
[365174757,1749513041962,-151.0,0.000227,7]
[365174758,1749513041971,-551.012964,0.000227,7]
[365174759,1749513041980,-551.012964,0.000227,7]
[365174760,1749513041990,-214.763106,0.000227,7]
[365174761,1749513042000,-1292.499572,0.000227,7]
[365174762,1749513042009,-214.763116,0.000227,7]
[365174763,1749513042019,-2116.07687,0.000227,2]
[365174764,1749513042029,-119.10017264,0.000227,2]
[365174765,1749513042206,1333.0,0.00023233,120]
[365174766,1749513042254,-440.0,0.00021364,4]
[365174767,1749513042264,-196.14802962,0.00021365,4]
[365174768,1749513042273,-51.07742998,0.00021918,2]
[365175092,1749513751131,200.0,0.00023446,120]
[365175093,1749513811587,200.0,0.00023789,120]
[365175094,1749513817429,772.52740323,0.00023233,120]
[365175097,1749513871880,200.0,0.00023516,120]
[365175098,1749513991309,200.0,0.00024015,120]
[365175100,1749514111112,200.0,0.00024311,120]
[365175127,1749514232665,-1342.05044601,0.00018,2]
[365175128,1749514232875,-524.31955399,0.00018,2]
[365175129,1749514232885,-218.21914769,0.00020059,2]
[365175130,1749514232894,-230.056722,0.00020159,2]
[365175131,1749514232903,-1743.5060697,0.00020365,2]
[365175132,1749514232914,-172.838547,0.00020407,2]
[365175133,1749514232924,-688.04,0.00020473,2]
[365175134,1749514232935,-176.0279996,0.00021263,2]
[365175135,1749514232944,-207.4,0.00021349,2]
[365175136,1749514232954,-460.937858,0.00021349,2]
[365175137,1749514232964,-1200.0,0.0002135,2]
[365175138,1749514232973,-4936.99098164,0.00021351,2]
[365175139,1749514232983,-165.0,0.00021351,2]
[365175140,1749514232992,-300.0,0.00021351,2]
[365175141,1749514233001,-300.0,0.00021351,2]
[365175142,1749514233011,-300.0,0.00021351,2]
[365175143,1749514233021,-300.0,0.00021352,2]
[365175144,1749514233031,-309.5591309,0.00021362,2]
[365175145,1749514233040,-510.49767918,0.00021362,2]
[365175146,1749514233050,-500.0,0.00021362,2]
[365175147,1749514233060,-203.23559999,0.00021362,2]
[365175148,1749514233070,-598.84238107,0.00021362,2]
[365175149,1749514233085,-500.0,0.00021362,2]
[365175150,1749514233095,-500.0,0.00021362,2]
[365175151,1749514233105,-500.0,0.00021362,2]
[365175152,1749514233116,-460.0,0.00021363,4]
[365175153,1749514233127,-430.0,0.00021363,4]
[365175154,1749514233137,-430.0,0.00021363,4]
[365175155,1749514233147,-430.0,0.00021363,4]
[365175156,1749514233158,-460.0,0.00021363,4]
[365175157,1749514233169,-430.0,0.00021363,4]
[365175158,1749514233179,-430.0,0.00021363,4]
[365175159,1749514233189,-430.0,0.00021363,4]
[365175160,1749514233199,-460.0,0.00021363,4]
[365175161,1749514233209,-400.0,0.00021363,4]
[365175162,1749514233219,-430.0,0.00021363,4]
[365175163,1749514233228,-337.8405064,0.00021363,4]
[365175164,1749514233238,-460.0,0.00021363,4]
[365175165,1749514233247,-400.0,0.00021363,4]
[365175166,1749514233258,-460.0,0.00021363,4]
[365175167,1749514233268,-460.0,0.00021363,4]
[365175168,1749514233277,-460.0,0.00021363,4]
[365175169,1749514233287,-460.0,0.00021363,4]
[365175170,1749514233307,-460.0,0.00021363,4]
[365175171,1749514233318,-460.0,0.00021363,4]
[365175172,1749514233329,-460.0,0.00021363,4]
[365175173,1749514233340,-460.0,0.00021363,4]
[365175174,1749514233350,-440.0,0.00021363,4]
[365175175,1749514233361,-430.0,0.00021363,4]
[365175176,1749514233371,-460.0,0.00021363,4]
[365175177,1749514233382,-430.0,0.00021363,4]
[365175178,1749514233392,-233.67553299,0.00021363,4]
[365175179,1749514233403,-430.94232894,0.00021363,4]
[365175180,1749514233413,-460.0,0.00021363,4]
[365175181,1749514233423,-460.0,0.00021363,4]
[365175182,1749514233433,-460.0,0.00021363,4]
[365175183,1749514233444,-460.0,0.00021363,4]
[365175184,1749514233454,-460.0,0.00021363,4]
[365175185,1749514233465,-202.30790771,0.00021363,4]
[365175186,1749514233476,-460.0,0.00021363,4]
[365175187,1749514233487,-450.0,0.00021363,4]
[365175188,1749514233498,-460.0,0.00021363,4]
[365175189,1749514233509,-460.0,0.00021363,4]
[365175190,1749514233519,-370.0,0.00021363,4]
[365175191,1749514233529,-440.0,0.00021363,4]
[365175192,1749514233539,-440.0,0.00021363,4]
[365175193,1749514233549,-460.0,0.00021363,4]
[365175194,1749514233559,-460.0,0.00021363,4]
[365175195,1749514233570,-339.95866092,0.00021363,4]
[365175196,1749514233580,-460.0,0.00021363,4]
[365175197,1749514233590,-430.0,0.00021363,4]
[365175198,1749514233600,-430.0,0.00021363,4]
[365175199,1749514233610,-460.0,0.00021363,4]
[365175200,1749514233620,-440.0,0.00021363,4]
[365175201,1749514233632,-460.0,0.00021363,4]
[365175202,1749514233643,-386.11947404,0.00021363,4]
[365175203,1749514233653,-460.0,0.00021363,4]
[365175204,1749514233662,-460.0,0.00021363,4]
[365175205,1749514233673,-430.0,0.00021363,4]
[365175206,1749514233682,-460.0,0.00021363,4]
[365175207,1749514233693,-440.0,0.00021363,4]
[365175208,1749514233703,-200.58955863,0.00021363,4]
[365175209,1749514233714,-430.0,0.00021363,4]
[365175210,1749514233724,-460.0,0.00021363,4]
[365175211,1749514233734,-440.0,0.00021363,4]
[365175212,1749514233744,-420.0,0.00021363,4]
[365175213,1749514233754,-460.0,0.00021363,4]
[365175214,1749514233763,-440.0,0.00021363,4]
[365175215,1749514233774,-420.0,0.00021363,4]
[365175216,1749514233783,-430.0,0.00021363,4]
[365175217,1749514233794,-460.0,0.00021363,4]
[365175218,1749514233803,-570.82162872,0.00021363,4]
[365175219,1749514233814,-430.0,0.00021363,4]
[365175220,1749514233823,-430.0,0.00021363,4]
[365175221,1749514233833,-372.48625507,0.00021363,4]
[365175222,1749514233843,-460.0,0.00021363,4]
[365175223,1749514233853,-376.65043904,0.00021363,4]
[365175224,1749514233863,-420.0,0.00021363,4]
[365175225,1749514233872,-440.0,0.00021363,4]
[365175226,1749514233882,-460.0,0.00021363,4]
[365175227,1749514233892,-420.0,0.00021363,4]
[365175228,1749514233903,-460.0,0.00021363,4]
[365175229,1749514233912,-420.0,0.00021363,4]
[365175230,1749514233922,-460.0,0.00021363,4]
[365175231,1749514233933,-394.92506051,0.00021363,4]
[365175232,1749514233944,-460.0,0.00021363,4]
[365175233,1749514233954,-460.0,0.00021363,4]
[365175234,1749514233965,-460.0,0.00021363,4]
[365175235,1749514233975,-460.0,0.00021363,4]
[365175236,1749514233991,-430.0,0.00021363,4]
[365175237,1749514234002,-460.0,0.00021363,4]
[365175238,1749514234012,-460.0,0.00021363,4]
[365175239,1749514234022,-460.0,0.00021363,4]
[365175240,1749514234032,-428.02812103,0.00021363,4]
[365175241,1749514234042,-430.0,0.00021363,4]
[365175242,1749514234052,-406.46787362,0.00021363,4]
[365175243,1749514234062,-460.0,0.00021363,4]
[365175244,1749514234073,-460.0,0.00021363,4]
[365175245,1749514234086,-460.0,0.00021363,4]